[Event "Bundesturnier Hauptturnier 1 2024"]
[Site "Olten"]
[Date "2024.05.10"]
[Round "4.9"]
[White "Malli, Suvirr"]
[Black "Loetscher, Roland"]
[Result "0-1"]
[ECO "B13"]
[WhiteElo "2150"]
[BlackElo "2384"]
[Annotator "ChessBase"]
[PlyCount "104"]
[EventDate "2024.05.09"]
[EventType "tourn"]
[EventCountry "SUI"]
[SourceTitle "playchess.com"]
[Source "ChessBase"]
[SourceQuality "1"]
[TimeControl "5400+30"]

1. e4 {[%emt 0:00:10]} c6 {[%emt 0:00:05]} 2. d4 {[%emt 0:00:17]} d5 {[%emt 0:00:05]} 3. exd5 {[%emt 0:00:07]} cxd5 {[%emt 0:00:05]} 4. Bd3 {[%emt 0:00:13]} Nc6 {[%emt 0:00:29]} 5. c3 {[%emt 0:00:08]} Nf6 {[%emt 0:01:31]} 6. Nf3 {[%emt 0:01:16]} Bg4 {[%emt 0:00:16]} 7. Bf4 {[%emt 0:01:05]} e6 {[%emt 0:00:40]} 8. Nbd2 {[%emt 0:00:50]} Bd6 {[%emt 0:00:45]} 9. Bg3 {[%emt 0:01:18]} O-O {[%emt 0:01:34]} 10. Qb3 {[%emt 0:01:40]} Qc7 {[%emt 0:14:14]} 11. Bxd6 {[%emt 0:07:42]} Qxd6 {[%emt 0:00:21]} 12. O-O {[%emt 0:09:52]} Rab8 {[%emt 0:02:25]} 13. h3 {[%emt 0:02:31]} Bh5 {[%emt 0:03:46]} 14. Rfe1 {[%emt 0:02:37]} b5 {[%emt 0:03:52]} 15. a3 {[%emt 0:00:56]} Na5 {[%emt 0:05:58]} 16. Qc2 {[%emt 0:03:17]} Nc4 {[%emt 0:02:40]} 17. b4 {[%emt 0:04:55]} Bxf3 {[%emt 0:03:12]} 18. Nxf3 {[%emt 0:01:24]} Qc7 {[%emt 0:03:17]} 19. Bxc4 {[%emt 0:01:49]} dxc4 {[%emt 0:01:51]} 20. Ne5 {[%emt 0:03:53]} Rfc8 {[%emt 0:03:32]} 21. Qd2 {[%emt 0:10:45]} a5 {[%emt 0:01:34]} 22. Qe2 {[%emt 0:11:48]} Ra8 {[%emt 0:02:17]} 23. Qf3 {[%emt 0:02:22]} Nd5 {[%emt 0:06:07]} 24. g3 {[%emt 0:01:25]} Ra6 {[%emt 0:01:01]} 25. a4 {[%emt 0:13:12]} axb4 {[%emt 0:03:57]} 26. axb5 {[%emt 0:00:22]} Rb6 {[%emt 0:05:23]} 27. Nc6 {[%emt 0:02:17]} bxc3 {[%emt 0:10:47]} 28. Ra7 {[%emt 0:09:52]} Rb7 {[%emt 0:04:35]} 29. Ra4 {[%emt 0:06:03]} Rxb5 {[%emt 0:15:46]} 30. Na7 {[%emt 0:00:33]} Rb4 {[%emt 0:00:11]} 31. Rxb4 {[%emt 0:00:27]} Qxa7 {[%emt 0:00:05]} 32. Rbb1 {[%emt 0:00:36]} Qxd4 {[%emt 0:00:46]} 33. Rb7 {[%emt 0:00:37]} Qf6 {[%emt 0:00:32]} 34. Qxf6 {[%emt 0:00:23]} gxf6 {[%emt 0:00:28]} 35. Ra1 {[%emt 0:00:13]} f5 {[%emt 0:01:46]} 36. Kg2 {[%emt 0:00:41]} f4 {[%emt 0:01:18]} 37. Kf3 {[%emt 0:00:29]} fxg3 {[%emt 0:00:33]} 38. fxg3 {[%emt 0:00:11]} c2 {[%emt 0:00:48]} 39. Rc1 {[%emt 0:01:00]} Ra8 {[%emt 0:00:41]} 40. Rxc2 {[%emt 0:00:11]} Ra3+ {[%emt 0:00:06]} 41. Kf2 {[%emt 0:00:35]} c3 {[%emt 0:00:21]} 42. Rb8+ {[%emt 0:00:47]} Kg7 {[%emt 0:00:06]} 43. Rc8 {[%emt 0:00:10]} h5 {[%emt 0:00:42]} 44. Kf3 {[%emt 0:00:25]} Kf6 {[%emt 0:00:19]} 45. Ke4 {[%emt 0:00:39]} Ra4+ {[%emt 0:00:19]} 46. Kf3 {[%emt 0:00:07]} h4 {[%emt 0:01:02]} 47. gxh4 {[%emt 0:00:54]} Rxh4 {[%emt 0:00:09]} 48. Kg3 {[%emt 0:00:08]} Rd4 {[%emt 0:00:19]} 49. h4 {[%emt 0:01:15]} Rd3+ {[%emt 0:00:26]} 50. Kf2 {[%emt 0:00:29]} Rh3 {[%emt 0:00:17]} 51. Ke1 {[%emt 0:00:20]} Rh1+ {[%emt 0:00:11]} 52. Ke2 {[%emt 0:00:11]} Rh2+ {[%emt 0:00:06]} 0-1

[Event "Bundesturnier Hauptturnier 1 2024"]
[Site "Olten"]
[Date "2024.05.10"]
[Round "4.10"]
[White "Schoenbaechler, Anselm"]
[Black "Rohrer, Christophe"]
[Result "0-1"]
[ECO "D00"]
[WhiteElo "1953"]
[BlackElo "2240"]
[Annotator "ChessBase"]
[PlyCount "70"]
[EventDate "2024.05.09"]
[EventType "tourn"]
[EventCountry "SUI"]
[SourceTitle "playchess.com"]
[Source "ChessBase"]
[SourceQuality "1"]
[TimeControl "5400+30"]

1. Nc3 {[%emt 0:00:04]} Nf6 {[%emt 0:01:27]} 2. d4 {[%emt 0:00:13]} d5 {[%emt 0:00:13]} 3. Bf4 {[%emt 0:00:07]} c6 {[%emt 0:00:19]} 4. e3 {[%emt 0:01:06]} Bf5 {[%emt 0:01:01]} 5. f3 {[%emt 0:00:08]} e6 {[%emt 0:00:48]} 6. g4 {[%emt 0:00:07]} Bg6 {[%emt 0:00:05]} 7. h4 {[%emt 0:00:03]} h6 {[%emt 0:01:09]} 8. Bd3 {[%emt 0:00:06]} Bxd3 {[%emt 0:00:27]} 9. Qxd3 {[%emt 0:00:05]} Bd6 {[%emt 0:01:19]} 10. Nge2 {[%emt 0:01:17]} Qc7 {[%emt 0:02:10]} 11. O-O-O {[%emt 0:01:51]} Nbd7 {[%emt 0:01:32]} 12. Bxd6 {[%emt 0:08:38]} Qxd6 {[%emt 0:00:06]} 13. e4 {[%emt 0:00:14]} dxe4 {[%emt 0:04:06]} 14. fxe4 {[%emt 0:01:46]} Nxg4 {[%emt 0:13:17]} 15. e5 {[%emt 0:09:07]} Qe7 {[%emt 0:06:31]} 16. Ne4 {[%emt 0:03:47]} O-O-O {[%emt 0:01:59]} 17. Qf3 {[%emt 0:01:47]} f5 {[%emt 0:01:12]} 18. Nd6+ {[%emt 0:06:57]} Kb8 {[%emt 0:00:22]} 19. Rh3 {[%emt 0:00:11]} g5 {[%emt 0:03:22]} 20. hxg5 {[%emt 0:33:43]} hxg5 {[%emt 0:03:00]} 21. Rxh8 {[%emt 0:06:14]} Rxh8 {[%emt 0:00:08]} 22. Qb3 {[%emt 0:00:12]} Nb6 {[%emt 0:00:37]} 23. a4 {[%emt 0:00:41]} Rh2 {[%emt 0:09:51]} 24. Nc3 {[%emt 0:04:09]} Ne3 {[%emt 0:01:39]} 25. Rd2 {[%emt 0:04:08]} Rh1+ {[%emt 0:02:02]} 26. Nd1 {[%emt 0:00:13]} f4 {[%emt 0:05:40]} 27. c4 {[%emt 0:02:09]} g4 {[%emt 0:01:50]} 28. Qd3 {[%emt 0:00:46]} Qg7 {[%emt 0:02:59]} 29. a5 {[%emt 0:01:43]} Nc8 {[%emt 0:06:01]} 30. a6 {[%emt 0:00:13]} g3 {[%emt 0:03:38]} 31. Qe4 {[%emt 0:02:47]} g2 {[%emt 0:00:56]} 32. axb7 {[%emt 0:00:26]} Ne7 {[%emt 0:00:22]} 33. Nc8 {[%emt 0:01:40]} g1=Q {[%emt 0:00:37]} 34. Nxe7 {[%emt 0:00:25]} Qxd1+ {[%emt 0:00:07]} 35. Rxd1 {[%emt 0:00:04]} Rxd1# {[%emt 0:00:06]} 0-1

[Event "Bundesturnier Hauptturnier 1 2024"]
[Site "Olten"]
[Date "2024.05.10"]
[Round "4.11"]
[White "Prunescu, Claudiu"]
[Black "Palmonella, Valentin"]
[Result "1-0"]
[ECO "E15"]
[WhiteElo "2249"]
[BlackElo "2124"]
[Annotator "ChessBase"]
[PlyCount "107"]
[EventDate "2024.05.09"]
[EventType "tourn"]
[EventCountry "SUI"]
[SourceTitle "playchess.com"]
[Source "ChessBase"]
[SourceQuality "1"]
[TimeControl "5400+30"]

1. d4 {[%emt 0:00:02]} Nf6 {[%emt 0:00:04]} 2. Nf3 {[%emt 0:00:22]} e6 {[%emt 0:00:17]} 3. c4 {[%emt 0:00:37]} b6 {[%emt 0:00:07]} 4. g3 {[%emt 0:00:52]} Ba6 {[%emt 0:00:05]} 5. b3 {[%emt 0:01:16]} Bb4+ {[%emt 0:00:07]} 6. Bd2 {[%emt 0:00:37]} Be7 {[%emt 0:00:05]} 7. Bg2 {[%emt 0:01:21]} c6 {[%emt 0:00:31]} 8. Bc3 {[%emt 0:01:28]} d5 {[%emt 0:00:21]} 9. Ne5 {[%emt 0:01:03]} Nfd7 {[%emt 0:00:55]} 10. Nxd7 {[%emt 0:01:03]} Nxd7 {[%emt 0:00:35]} 11. Nd2 {[%emt 0:01:11]} O-O {[%emt 0:00:34]} 12. O-O {[%emt 0:00:49]} Rc8 {[%emt 0:01:15]} 13. Bb2 {[%emt 0:02:07]} Nf6 {[%emt 0:12:47]} 14. e4 {[%emt 0:04:46]} dxe4 {[%emt 0:05:12]} 15. Nxe4 {[%emt 0:00:17]} Nxe4 {[%emt 0:00:22]} 16. Bxe4 {[%emt 0:00:09]} f5 {[%emt 0:01:20]} 17. Bg2 {[%emt 0:01:37]} Bf6 {[%emt 0:00:46]} 18. Re1 {[%emt 0:02:54]} Re8 {[%emt 0:00:36]} 19. Qd2 {[%emt 0:04:48]} e5 {[%emt 0:12:22]} 20. d5 {[%emt 0:05:26]} e4 {[%emt 0:01:58]} 21. Rad1 {[%emt 0:02:22]} cxd5 {[%emt 0:01:32]} 22. Bxf6 {[%emt 0:00:26]} Qxf6 {[%emt 0:00:14]} 23. Qxd5+ {[%emt 0:00:30]} Kf8 {[%emt 0:02:16]} 24. Qd7 {[%emt 0:15:39]} Re7 {[%emt 0:03:15]} 25. Qd6 {[%emt 0:01:18]} Qxd6 {[%emt 0:01:22]} 26. Rxd6 {[%emt 0:00:06]} Bb7 {[%emt 0:00:18]} 27. Red1 {[%emt 0:00:57]} g6 {[%emt 0:05:23]} 28. Kf1 {[%emt 0:03:59]} e3 {[%emt 0:09:42]} 29. fxe3 {[%emt 0:02:44]} Bxg2+ {[%emt 0:02:50]} 30. Kxg2 {[%emt 0:00:19]} Rxe3 {[%emt 0:00:05]} 31. Rd7 {[%emt 0:01:35]} Re7 {[%emt 0:00:18]} 32. Kf3 {[%emt 0:00:41]} Rc7 {[%emt 0:00:55]} 33. Rxc7 {[%emt 0:01:03]} Rxc7 {[%emt 0:00:01]} 34. Kf4 {[%emt 0:00:46]} Re7 {[%emt 0:00:56]} 35. a4 {[%emt 0:02:24]} Kg7 {[%emt 0:03:23]} 36. Rd6 {[%emt 0:02:15]} h6 {[%emt 0:06:43]} 37. a5 {[%emt 0:09:19]} bxa5 {[%emt 0:06:25]} 38. Ra6 {[%emt 0:03:25]} Rb7 {[%emt 0:15:08]} 39. Ke5 {[%emt 0:02:25]} h5 {[%emt 0:00:45]} 40. c5 {[%emt 0:03:10]} h4 {[%emt 0:02:34]} 41. c6 {[%emt 0:02:38]} Rxb3 {[%emt 0:00:16]} 42. c7 {[%emt 0:00:34]} Rc3 {[%emt 0:01:38]} 43. Kd6 {[%emt 0:00:17]} Rd3+ {[%emt 0:00:08]} 44. Ke7 {[%emt 0:00:27]} Re3+ {[%emt 0:00:43]} 45. Kd7 {[%emt 0:00:09]} Rd3+ {[%emt 0:00:16]} 46. Rd6 {[%emt 0:00:45]} Rc3 {[%emt 0:00:22]} 47. Rc6 {[%emt 0:00:35]} Rd3+ {[%emt 0:00:37]} 48. Ke6 {[%emt 0:00:28]} Re3+ {[%emt 0:01:07]} 49. Kd5 {[%emt 0:00:19]} Re8 {[%emt 0:00:52]} 50. c8=Q {[%emt 0:00:13]} Rxc8 {[%emt 0:00:03]} 51. Rxc8 {[%emt 0:00:05]} hxg3 {[%emt 0:00:05]} 52. hxg3 {[%emt 0:00:11]} Kf6 {[%emt 0:00:12]} 53. Kd4 {[%emt 0:00:19]} Kg5 {[%emt 0:00:08]} 54. Ke3 {[%emt 0:00:09]} 1-0

[Event "Bundesturnier Hauptturnier 1 2024"]
[Site "Olten"]
[Date "2024.05.10"]
[Round "4.12"]
[White "Rotunno, Flavio"]
[Black "Kamber, Bruno"]
[Result "1/2-1/2"]
[ECO "A40"]
[WhiteElo "2105"]
[BlackElo "2217"]
[Annotator "ChessBase"]
[PlyCount "163"]
[EventDate "2024.05.09"]
[EventType "tourn"]
[EventCountry "SUI"]
[SourceTitle "playchess.com"]
[Source "ChessBase"]
[SourceQuality "1"]
[TimeControl "5400+30"]

1. d4 {[%emt 0:00:21]} g6 {[%emt 0:07:00]} 2. c4 {[%emt 0:00:18]} Bg7 {[%emt 0:00:05]} 3. e4 {[%emt 0:03:11]} Nc6 {[%emt 0:00:17]} 4. d5 {[%emt 0:08:50]} Nd4 {[%emt 0:00:16]} 5. Nc3 {[%emt 0:00:54]} c5 {[%emt 0:00:07]} 6. g3 {[%emt 0:07:44]} d6 {[%emt 0:05:54]} 7. Bg2 {[%emt 0:00:03]} b5 {[%emt 0:03:03]} 8. cxb5 {[%emt 0:01:49]} a6 {[%emt 0:00:05]} 9. b6 {[%emt 0:01:07]} Qxb6 {[%emt 0:01:44]} 10. Nge2 {[%emt 0:00:04]} h5 {[%emt 0:06:35]} 11. h3 {[%emt 0:03:43]} Bd7 {[%emt 0:02:40]} 12. O-O {[%emt 0:00:53]} Rb8 {[%emt 0:02:37]} 13. Rb1 {[%emt 0:02:00]} Nh6 {[%emt 0:04:17]} 14. Be3 {[%emt 0:01:32]} a5 {[%emt 0:06:40]} 15. f3 {[%emt 0:06:09]} O-O {[%emt 0:08:31]} 16. Qd2 {[%emt 0:01:00]} Kh7 {[%emt 0:00:21]} 17. Rfd1 {[%emt 0:07:23]} Bxh3 {[%emt 0:08:45]} 18. Nxd4 {[%emt 0:00:06]} cxd4 {[%emt 0:01:52]} 19. Bxd4 {[%emt 0:00:04]} Bxd4+ {[%emt 0:07:44]} 20. Qxd4 {[%emt 0:00:13]} Qxd4+ {[%emt 0:04:31]} 21. Rxd4 {[%emt 0:00:06]} Bd7 {[%emt 0:00:17]} 22. Rc4 {[%emt 0:11:57]} Rb7 {[%emt 0:02:29]} 23. b4 {[%emt 0:08:09]} Rfb8 {[%emt 0:00:13]} 24. a3 {[%emt 0:00:48]} f5 {[%emt 0:00:10]} 25. Bh3 {[%emt 0:05:09]} g5 {[%emt 0:05:30]} 26. Bf1 {[%emt 0:10:39]} Nf7 {[%emt 0:00:37]} 27. Be2 {[%emt 0:03:37]} Ne5 {[%emt 0:00:39]} 28. Rd4 {[%emt 0:00:01]} Rc7 {[%emt 0:00:29]} 29. bxa5 {[%emt 0:00:51]} Ra8 {[%emt 0:05:34]} 30. Rb3 {[%emt 0:03:21]} fxe4 {[%emt 0:04:36]} 31. Nxe4 {[%emt 0:00:32]} Rc2 {[%emt 0:02:02]} 32. Bd1 {[%emt 0:05:45]} Rc1 {[%emt 0:01:01]} 33. Nxg5+ {[%emt 0:01:56]} Kh6 {[%emt 0:00:14]} 34. Ne4 {[%emt 0:04:36]} Rxa5 {[%emt 0:00:21]} 35. Nf2 {[%emt 0:00:29]} Ra1 {[%emt 0:02:57]} 36. Kg2 {[%emt 0:01:58]} Ra2 {[%emt 0:04:34]} 37. Rb8 {[%emt 0:00:53]} R5xa3 {[%emt 0:00:33]} 38. Rb3 {[%emt 0:00:41]} Rxb3 {[%emt 0:01:20]} 39. Bxb3 {[%emt 0:00:02]} Rb2 {[%emt 0:00:14]} 40. Bd1 {[%emt 0:00:57]} Bf5 {[%emt 0:01:08]} 41. Kg1 {[%emt 0:00:36]} Rb1 {[%emt 0:01:04]} 42. Kh2 {[%emt 0:00:30]} Nd3 {[%emt 0:01:28]} 43. Kg1 {[%emt 0:00:25]} Ne5 {[%emt 0:00:23]} 44. Kg2 {[%emt 0:00:33]} Rb2 {[%emt 0:00:19]} 45. Kf1 {[%emt 0:00:28]} Bd7 {[%emt 0:00:21]} 46. Be2 {[%emt 0:00:35]} Rb1+ {[%emt 0:00:23]} 47. Kg2 {[%emt 0:00:23]} Bf5 {[%emt 0:00:19]} 48. f4 {[%emt 0:00:30]} Ng4 {[%emt 0:00:21]} 49. Bxg4 {[%emt 0:00:35]} hxg4 {[%emt 0:00:09]} 50. Rd2 {[%emt 0:00:11]} Kg6 {[%emt 0:00:15]} 51. Re2 {[%emt 0:00:43]} Kf7 {[%emt 0:00:12]} 52. Rd2 {[%emt 0:00:33]} Rb4 {[%emt 0:00:32]} 53. Kf1 {[%emt 0:00:32]} Rb3 {[%emt 0:00:14]} 54. Kg2 {[%emt 0:00:18]} Re3 {[%emt 0:00:35]} 55. Ra2 {[%emt 0:00:31]} Re1 {[%emt 0:00:15]} 56. Rd2 {[%emt 0:00:37]} Kf6 {[%emt 0:00:15]} 57. Ra2 {[%emt 0:00:30]} Bc8 {[%emt 0:00:38]} 58. Rc2 {[%emt 0:00:36]} Bd7 {[%emt 0:00:19]} 59. Rb2 {[%emt 0:00:30]} Bf5 {[%emt 0:01:03]} 60. Ra2 {[%emt 0:00:25]} Rb1 {[%emt 0:00:18]} 61. Ra8 {[%emt 0:00:34]} Rb2 {[%emt 0:00:34]} 62. Rf8+ {[%emt 0:00:04]} Kg6 {[%emt 0:00:06]} 63. Rg8+ {[%emt 0:00:02]} Kf7 {[%emt 0:01:49]} 64. Rg5 {[%emt 0:00:13]} Be4+ {[%emt 0:00:14]} 65. Kf1 {[%emt 0:00:32]} Rb1+ {[%emt 0:01:15]} 66. Ke2 {[%emt 0:00:08]} Bf3+ {[%emt 0:00:22]} 67. Kd3 {[%emt 0:01:11]} Rg1 {[%emt 0:01:30]} 68. Nxg4 {[%emt 0:00:12]} Rd1+ {[%emt 0:00:19]} 69. Ke3 {[%emt 0:01:14]} Bxg4 {[%emt 0:00:21]} 70. Rxg4 {[%emt 0:00:05]} Rxd5 {[%emt 0:00:08]} 71. Rh4 {[%emt 0:00:34]} Kg7 {[%emt 0:00:21]} 72. Rh1 {[%emt 0:00:27]} Ra5 {[%emt 0:00:15]} 73. g4 {[%emt 0:00:31]} Ra4 {[%emt 0:00:31]} 74. Rb1 {[%emt 0:00:58]} e5 {[%emt 0:00:30]} 75. fxe5 {[%emt 0:00:24]} dxe5 {[%emt 0:00:14]} 76. Rb6 {[%emt 0:00:32]} Kf7 {[%emt 0:00:36]} 77. g5 {[%emt 0:00:20]} Rg4 {[%emt 0:00:45]} 78. Kf3 {[%emt 0:00:44]} Rxg5 {[%emt 0:00:27]} 79. Ke4 {[%emt 0:00:04]} Rh5 {[%emt 0:00:06]} 80. Ra6 {[%emt 0:00:40]} Ke7 {[%emt 0:00:31]} 81. Rb6 {[%emt 0:00:41]} Kd7 {[%emt 0:00:25]} 82. Ra6 {[%emt 0:00:09]} 1/2-1/2

[Event "Bundesturnier Hauptturnier 1 2024"]
[Site "Olten"]
[Date "2024.05.11"]
[Round "5.1"]
[White "Baenziger, Fabian"]
[Black "Gryshko, Vitalii"]
[Result "1/2-1/2"]
[ECO "E43"]
[WhiteElo "2415"]
[BlackElo "2316"]
[Annotator "TA"]
[PlyCount "48"]
[EventDate "2024.05.09"]
[EventType "tourn"]
[EventCountry "SUI"]
[SourceTitle "playchess.com"]
[Source "ChessBase"]
[SourceQuality "1"]
[TimeControl "5400+30"]

{[%evp 22,48,53,46,53,58,58,58,68,68,77,54,64,56,56,54,166,0,9,0,0,0,23,0,0,0,0,-44,0]} 1. d4 {[%emt 0:00:18]} Nf6 {[%emt 0:00:04]} 2. c4 {[%emt 0:00:11]} e6 {[%emt 0:00:04]} 3. Nc3 {[%emt 0:00:17]} Bb4 {[%emt 0:00:32]} 4. e3 {[%emt 0:00:34]} b6 {[%emt 0:00:34]} 5. Bd3 {[%emt 0:02:02]} Bb7 {[%emt 0:03:19]} 6. Nf3 {[%emt 0:00:04]} Bxc3+ {[%emt 0:05:23]} 7. bxc3 {[%emt 0:00:09]} d6 {[%emt 0:01:09]} 8. O-O {[%emt 0:00:29]} Nbd7 {[%emt 0:02:00]} 9. Nd2 {[%emt 0:04:47]} O-O {[%emt 0:00:57]} 10. e4 {[%emt 0:00:21]} e5 {[%emt 0:00:04]} 11. Re1 {[%emt 0:00:08]} Re8 {[%emt 0:00:35]} 12. f3 {[%emt 0:00:52]} Nh5 {[%emt 0:06:21]} 13. Nf1 {[%emt 0:04:15]} Qf6 {[%emt 0:02:24]} 14. Ne3 {[%emt 0:07:51]} Nf8 {[%emt 0:06:13] White is slightly better.} 15. Bf1 {[%emt 0:13:08]} Nf4 {[%emt 0:05:58]} 16. Rb1 {[%emt 0:05:44]} N8e6 {[%emt 0:02:27]} 17. Nd5 {[%emt 0:05:38]} Qg6 {[%emt 0:06:40] [#] And now ...Nh3+ would win.} 18. Rb2 {[%emt 0:02:00]} f5 {[%emt 0:14:34]} ({Black should try} 18... h5 $14) 19. Nxf4 $2 {[%emt 0:09:59]} (19. Bxf4 $18 Nxf4 20. Nxc7 fxe4 21. d5) 19... Nxf4 $11 {[%emt 0:00:58]} 20. Bxf4 {[%emt 0:00:04]} exf4 {[%emt 0:00:03]} 21. exf5 {[%emt 0:00:04]} Qxf5 {[%emt 0:02:45]} 22. Rbe2 {[%emt 0:00:07]} Rxe2 {[%emt 0:02:45]} 23. Rxe2 {[%emt 0:05:37]} Kf8 {[%emt 0:04:47] Inhibits Re7.} 24. Qd2 {[%emt 0:09:26]} Qg5 {[%emt 0:09:25] Weighted Error Value: White=0.30/Black=0.20 (precise) .  Mistake:       	White=1     	Black=1      Inaccurate:     	White=1     	Black=1      OK:         	White=4     	Black=3} 1/2-1/2

[Event "Bundesturnier Hauptturnier 1 2024"]
[Site "Olten"]
[Date "2024.05.11"]
[Round "5.2"]
[White "Gantner, Matthias"]
[Black "Willems, Niels"]
[Result "1/2-1/2"]
[ECO "B12"]
[WhiteElo "2237"]
[BlackElo "2329"]
[Annotator "ChessBase"]
[PlyCount "102"]
[EventDate "2024.05.09"]
[EventType "tourn"]
[EventCountry "SUI"]
[SourceTitle "playchess.com"]
[Source "ChessBase"]
[SourceQuality "1"]
[TimeControl "5400+30"]

1. e4 {[%emt 0:00:03]} c6 {[%emt 0:00:09]} 2. d4 {[%emt 0:00:07]} d5 {[%emt 0:00:05]} 3. e5 {[%emt 0:00:05]} Bf5 {[%emt 0:00:16]} 4. Nd2 {[%emt 0:00:14]} e6 {[%emt 0:00:44]} 5. Nb3 {[%emt 0:00:10]} Nd7 {[%emt 0:02:58]} 6. Nf3 {[%emt 0:00:11]} h6 {[%emt 0:03:35]} 7. Be2 {[%emt 0:00:23]} a5 {[%emt 0:03:39]} 8. a4 {[%emt 0:00:16]} Ne7 {[%emt 0:00:30]} 9. O-O {[%emt 0:00:15]} Qc7 {[%emt 0:00:58]} 10. Nh4 {[%emt 0:04:51]} Be4 {[%emt 0:03:39]} 11. f3 {[%emt 0:01:10]} Bxc2 {[%emt 0:11:08]} 12. Qxc2 {[%emt 0:00:18]} g5 {[%emt 0:00:03]} 13. g4 {[%emt 0:04:18]} gxh4 {[%emt 0:00:05]} 14. f4 {[%emt 0:00:48]} h5 {[%emt 0:14:15]} 15. f5 {[%emt 0:06:28]} hxg4 {[%emt 0:03:22]} 16. fxe6 {[%emt 0:03:03]} fxe6 {[%emt 0:00:07]} 17. Bxg4 {[%emt 0:02:06]} Rg8 {[%emt 0:00:38]} 18. h3 {[%emt 0:03:07]} O-O-O {[%emt 0:11:51]} 19. Kh1 {[%emt 0:02:07]} Nf5 {[%emt 0:02:44]} 20. Bd2 {[%emt 0:26:32]} Ng3+ {[%emt 0:14:03]} 21. Kh2 {[%emt 0:00:06]} Nxf1+ {[%emt 0:00:03]} 22. Rxf1 {[%emt 0:00:05]} Rxg4 {[%emt 0:01:49]} 23. hxg4 {[%emt 0:00:09]} Bb4 {[%emt 0:08:14]} 24. Bxb4 {[%emt 0:02:01]} Nxe5 {[%emt 0:00:33]} 25. dxe5 {[%emt 0:01:32]} Qxe5+ {[%emt 0:00:03]} 26. Kh1 {[%emt 0:00:22]} axb4 {[%emt 0:00:04]} 27. Qd3 {[%emt 0:08:32]} Qxb2 {[%emt 0:06:01]} 28. Nc5 {[%emt 0:00:13]} h3 {[%emt 0:00:17]} 29. Rg1 {[%emt 0:01:03]} h2 {[%emt 0:02:51]} 30. Rf1 {[%emt 0:02:52]} Qc3 {[%emt 0:02:08]} 31. Qxc3 {[%emt 0:01:47]} bxc3 {[%emt 0:00:01]} 32. Nxe6 {[%emt 0:01:33]} Rg8 {[%emt 0:00:41]} 33. g5 {[%emt 0:04:22]} c2 {[%emt 0:07:27]} 34. Kxh2 {[%emt 0:01:26]} Rg6 {[%emt 0:00:43]} 35. Nd4 {[%emt 0:00:43]} Rxg5 {[%emt 0:00:07]} 36. Nxc2 {[%emt 0:00:07]} Rg4 {[%emt 0:00:12]} 37. Ra1 {[%emt 0:01:05]} Kb8 {[%emt 0:02:02]} 38. Kh3 {[%emt 0:00:38]} Rc4 {[%emt 0:00:01]} 39. Ra2 {[%emt 0:00:28]} Ka7 {[%emt 0:00:00]} 40. Kg3 {[%emt 0:04:53]} Ka6 {[%emt 0:00:01]} 41. a5 {[%emt 0:03:49]} Rc5 {[%emt 0:02:16]} 42. Nb4+ {[%emt 0:00:20]} Kb5 {[%emt 0:00:02]} 43. a6 {[%emt 0:00:31]} bxa6 {[%emt 0:00:16]} 44. Nxa6 {[%emt 0:00:08]} Rc3+ {[%emt 0:00:12]} 45. Kf4 {[%emt 0:01:20]} Kc4 {[%emt 0:01:13]} 46. Ra4+ {[%emt 0:01:24]} Kb3 {[%emt 0:00:33]} 47. Rb4+ {[%emt 0:00:21]} Kc2 {[%emt 0:00:03]} 48. Ke5 {[%emt 0:00:41]} c5 {[%emt 0:00:52]} 49. Rb5 {[%emt 0:01:21]} d4 {[%emt 0:00:10]} 50. Nxc5 {[%emt 0:00:23]} d3 {[%emt 0:00:12]} 51. Nxd3 {[%emt 0:01:21]} Rxd3 {[%emt 0:00:05]} 1/2-1/2